fUST/lending_fUST_20250324
["ID","MTS","AMOUNT","RATE_DAILY","PERIOD"]
[356606890,1742806811933,-500.0,0.00012155,2]
[356606891,1742806813121,-234.9847,0.00012155,2]
[356606892,1742806815130,1769.3572943,0.00011495,2]
[356606893,1742806837585,-150.0,0.00012155,2]
[356606894,1742806840980,191.293913,0.00011586,2]
[356606895,1742806841186,191.293913,0.00011586,61]
[356606896,1742806841437,191.293913,0.00011586,120]
[356606897,1742806842344,-198.30041947,0.00012155,2]
[356606898,1742806845617,169.473225,0.00011494,2]
[356606899,1742806851770,10000.0,0.00011494,2]
[356606900,1742806865436,-164.0984,0.00012155,2]
[356606901,1742806877316,24900.0,0.00011493,2]
[356606902,1742806922215,-171.15166986,0.00012155,2]
[356606903,1742806951991,-177.298009,0.00012155,2]
[356606904,1742806955442,-152.67,0.00012155,2]
[356606905,1742806989818,-305.201991,0.00012155,2]
[356606906,1742806994762,-179.54716099,0.00012278,2]
[356606907,1742807043387,-262.31674087,0.00012155,2]
[356606908,1742807058738,-234.14363306,0.00012155,2]
[356606909,1742807072622,-223.96826078,0.00012155,2]
[356606910,1742807089230,-200.0,0.00012155,2]
[356606911,1742807103266,-300.0,0.00012155,2]
[356606912,1742807163799,-272.62,0.00012155,2]
[356606913,1742807164500,-207.18272606,0.00012155,2]
[356606914,1742807164525,-65.43727394,0.00012278,2]
[356606915,1742807166988,1593.85159603,0.0001202,2]
[356606916,1742807178737,250.0,0.00011406,2]
[356606917,1742807180785,7522.6926331,0.00011497,2]
[356606918,1742807194653,-157.1510105,0.00012278,2]
[356606919,1742807195421,-97.86455457,0.00012278,2]
[356606920,1742807195445,-59.28645593,0.00012278,2]
[356606921,1742807224084,-175.94056,0.00012278,2]
[356606922,1742807224108,-43.63286043,0.00012395,2]
[356606923,1742807249108,-522.8439053,0.00012395,2]
[356606924,1742807250711,-152.67,0.00012395,2]
[356606925,1742807252236,-658.81606512,0.00012395,2]
[356606926,1742807252258,-300.0,0.00012397,2]
[356606927,1742807252280,-586.4671549,0.00012398,2]
[356606928,1742807252301,-586.4671549,0.00012398,2]
[356606929,1742807252322,-586.4671549,0.00012398,2]
[356606930,1742807252343,-586.4671549,0.00012398,2]
[356606931,1742807252366,-586.4671549,0.00012398,2]
[356606932,1742807252388,-586.4671549,0.00012398,2]
[356606933,1742807252410,-586.4671549,0.00012398,2]
[356606934,1742807252432,-586.4671549,0.00012398,2]
[356606935,1742807252453,-586.4671549,0.00012398,2]
[356606936,1742807252473,-586.4671549,0.00012398,2]
[356606937,1742807252495,-586.4671549,0.00012398,2]
[356606938,1742807252517,-586.4671549,0.00012398,2]
[356606939,1742807252539,-586.4671549,0.00012398,2]
[356606940,1742807252560,-551.95682961,0.00012398,2]
[356606941,1742807282604,-152.67,0.00012398,2]
[356606942,1742807342096,-152.67,0.00012273,2]
[356606943,1742807342119,-105.49253251,0.00012398,2]
[356606944,1742807369686,-165.28191878,0.00012397,2]
[356606945,1742807372536,-208.30949799,0.00012397,2]
[356606946,1742807403701,-151.0,0.00012396,2]
[356606947,1742807411424,-151.0,0.00012392,2]
[356606948,1742807411446,-104.99154232,0.00012392,2]
[356606949,1742807414757,-176.22338134,0.0001239,2]
[356606970,1742807432751,-1102.37026468,0.00012298,2]
[356606971,1742807432761,-423.77661866,0.0001239,2]
[356606972,1742807432771,-197.00845768,0.00012392,2]
[356606973,1742807432780,-149.0,0.00012396,2]
[356606974,1742807432790,-448.32805524,0.00012397,2]
[356606975,1742807432800,-2902.48604622,0.00012398,2]
[356606976,1742807436886,-160.0,0.00012396,2]
[356607088,1742807446226,-340.0,0.00012396,2]
[356607089,1742807446236,-500.0,0.00012396,2]
[356607090,1742807446245,-500.0,0.00012396,2]
[356607091,1742807446255,-500.0,0.00012396,2]
[356607092,1742807446264,-187.81841023,0.00012396,2]
[356607093,1742807447303,-160.0,0.00012396,2]
[356607094,1742807465482,173.39,0.00010959,2]
[356607095,1742807476223,866.99,0.00010959,2]
[356607096,1742807522215,-152.18158977,0.00012396,2]
[356607097,1742807522238,-500.0,0.00012396,2]
[356607098,1742807522262,-16.0804614,0.00012396,2]
[356607099,1742807524025,-300.0,0.00012395,2]
[356607100,1742807524051,-183.9195386,0.00012396,2]
[356607101,1742807525156,-300.0,0.00012396,2]
[356607102,1742807526215,-500.0,0.00012396,2]
[356607103,1742807526239,-168.26205117,0.00012396,2]
[356607104,1742807527266,-331.73794883,0.00012396,2]
[356607105,1742807528924,-500.0,0.00012396,2]
[356607106,1742807528947,-168.26205117,0.00012396,2]
[356607107,1742807530374,-227.07504028,0.00012396,2]
[356607108,1742807565659,-150.0,0.00012395,2]
[356607109,1742807575206,-150.0,0.00012271,2]
[356607110,1742807583293,-150.0,0.00012271,2]
[356607111,1742807591357,-150.0,0.0001227,2]
[356607112,1742807646120,-150.0,0.0001227,2]
[356607113,1742807646149,-2.67,0.00012394,2]
[356607114,1742807647195,-152.67,0.00012394,2]
[356607115,1742807666854,-144.66,0.00012394,2]
[356607116,1742807666877,-32.44636203,0.00012395,2]
[356607117,1742807673623,-150.0,0.00012394,2]
[356607118,1742807677589,-573.97348539,0.00012394,2]
[356607119,1742807677611,-573.97348539,0.00012394,2]
[356607120,1742807677633,-573.97348539,0.00012394,2]
[356607121,1742807677668,-573.97348539,0.00012394,2]
[356607122,1742807677700,-573.97348539,0.00012394,2]
[356607123,1742807677731,-573.97348539,0.00012394,2]
[356607124,1742807677759,-372.35888766,0.00012394,2]
[356607125,1742807705851,-151.0,0.0001227,2]
[356607126,1742807707456,-167.7355185,0.0001227,2]
[356607127,1742807711361,-8.37084353,0.0001227,2]
[356607128,1742807711388,-151.0,0.00012389,2]
[356607129,1742807711415,-43.00508584,0.00012389,2]
[356607130,1742807714691,-296.91717984,0.00012387,2]
[356607131,1742807759163,-207.72453337,0.00012263,2]
[356607132,1742807796957,-200.0,0.00012263,2]
[356607133,1742807797524,-200.0,0.00012263,2]
[356607134,1742807824341,-150.0,0.00012263,2]
[356607135,1742807882243,-297.37638049,0.00012263,2]
[356607136,1742807895631,24900.0,0.00011392,2]
[356607137,1742807901611,-150.0,0.00012295,2]
[356607138,1742807913369,-329.17,0.0001214,2]
[356607139,1742807914075,-329.17,0.0001214,2]
[356607140,1742807943708,-0.46187341,0.0001214,2]
[356607141,1742807943732,-233.77976513,0.00012295,2]
[356607142,1742807955853,8830.5756445,0.00011391,2]
[356607143,1742808002575,-165.03549918,0.00012172,2]
[356607144,1742808007440,-153.34648179,0.00012172,2]
[356607145,1742808033563,-10.78801903,0.00012172,2]
[356607146,1742808033588,-175.52767355,0.00012295,2]
[356607147,1742808034027,-186.31569258,0.00012295,2]
[356607148,1742808042613,250.0,0.00011255,2]
[356607149,1742808048276,-150.0,0.00012295,2]
[356607151,1742808064803,-32.80184075,0.00012295,2]
[356607152,1742808064826,-264.76701429,0.00012384,2]
[356607153,1742808084978,1060.1351598,0.00011392,2]
[356607154,1742808120250,-188.5442356,0.00012291,2]
[356607155,1742808153365,-177.57121678,0.00012291,2]
[356607156,1742808153946,-177.57121678,0.00012291,2]
[356607157,1742808179620,-198.30041947,0.00012291,2]
[356607158,1742808184002,-0.75288897,0.00012291,2]
[356607159,1742808184027,-206.97123793,0.00012299,2]
[356607160,1742808192092,-154.03588531,0.00012176,2]
[356607161,1742808219711,-53.68824159,0.00012176,2]
[356607162,1742808219739,-165.17912682,0.00012176,2]
[356607163,1742808227260,154.03588531,0.0001202,2]
[356607164,1742808243261,-285.21772863,0.00012175,2]
[356607165,1742808276516,-14.78227137,0.00012175,2]
[356607166,1742808276539,-150.25322781,0.00012175,2]
[356607167,1742808279611,-87.38556085,0.00012175,2]
[356607168,1742808279635,-91.33995174,0.00012175,2]
[356607169,1742808286727,178.72551259,0.0001202,2]
[356607170,1742808302184,200.17391884,0.0001202,2]
[356607171,1742808305430,-155.4504,0.00012174,2]
[356607172,1742808335096,250.0,0.00011297,2]
[356607173,1742808365479,-208.0888796,0.00012174,2]
[356607174,1742808396797,-91.9111204,0.00012174,2]
[356607175,1742808396820,-114.18936128,0.00012174,2]
[356607176,1742808400391,-206.10048168,0.00012174,2]
[356607177,1742808412904,206.10048168,0.0001202,2]
[356607178,1742808423484,-152.0,0.00012173,2]
[356607179,1742808429806,152.0,0.0001202,2]
[356607180,1742808442392,-487.56347564,0.00012074,2]
[356607181,1742808453675,487.56347564,0.0001202,2]
[356607182,1742808454100,-106.62850644,0.00012074,2]
[356607183,1742808454124,-148.0,0.00012173,2]
[356607184,1742808454148,-10336.60752814,0.00012174,2]
[356607185,1742808483092,-158.0944893,0.00012173,2]
[356607186,1742808492472,158.0944893,0.0001202,2]
[356607188,1742808512586,-141.9055107,0.00012173,2]
[356607189,1742808512609,-98.98544236,0.00012173,2]
[356607190,1742808517096,-185.58708785,0.00012173,2]
[356607195,1742808523917,-153.0,0.00012173,2]
[356607196,1742808544886,-176.93304614,0.00012172,2]
[356607200,1742808547106,-123.06695386,0.00012172,2]
[356607201,1742808547128,-234.23295777,0.00012173,2]
[356607202,1742808547150,-559.70064779,0.00012173,2]
[356607203,1742808547171,-559.70064779,0.00012173,2]
[356607204,1742808547192,-559.70064779,0.00012173,2]
[356607205,1742808547214,-559.70064779,0.00012173,2]
[356607206,1742808547235,-559.70064779,0.00012173,2]
[356607207,1742808547256,-559.70064779,0.00012173,2]
[356607208,1742808547277,-559.70064779,0.00012173,2]
[356607209,1742808547298,-559.70064779,0.00012173,2]
[356607210,1742808547319,-288.96517804,0.00012173,2]
[356607211,1742808547792,-165.3413061,0.00012173,2]
[356607212,1742808550136,-105.39416365,0.00012173,2]
[356607213,1742808550158,-559.70064779,0.00012173,2]
[356607214,1742808550180,-559.70064779,0.00012173,2]
[356607215,1742808550201,-559.70064779,0.00012173,2]
[356607216,1742808550221,-559.70064779,0.00012173,2]
[356607217,1742808550243,-559.70064779,0.00012173,2]
[356607218,1742808550264,-559.70064779,0.00012173,2]
[356607219,1742808550285,-559.70064779,0.00012173,2]
[356607220,1742808550306,-559.70064779,0.00012173,2]
[356607221,1742808550326,-559.70064779,0.00012173,2]
[356607222,1742808550347,-559.70064779,0.00012173,2]
[356607223,1742808550369,-559.70064779,0.00012173,2]
[356607224,1742808550498,-559.70064779,0.00012173,2]
[356607225,1742808550562,-559.70064779,0.00012173,2]
[356607226,1742808550582,-559.70064779,0.00012173,2]
[356607227,1742808550603,-559.70064779,0.00012173,2]
[356607228,1742808550623,-559.70064779,0.00012173,2]
[356607229,1742808550644,-559.70064779,0.00012173,2]
[356607230,1742808550665,-559.70064779,0.00012173,2]
[356607231,1742808550685,-559.70064779,0.00012173,2]
[356607232,1742808550706,-559.70064779,0.00012173,2]
[356607233,1742808550726,-559.70064779,0.00012173,2]
[356607234,1742808550747,-559.70064779,0.00012173,2]
[356607235,1742808550768,-559.70064779,0.00012173,2]
[356607236,1742808550788,-559.70064779,0.00012173,2]
[356607237,1742808550808,-559.70064779,0.00012173,2]
[356607238,1742808550829,-559.70064779,0.00012173,2]
[356607239,1742808550849,-559.70064779,0.00012173,2]
[356607240,1742808550870,-559.70064779,0.00012173,2]
[356607241,1742808550890,-559.70064779,0.00012173,2]
[356607242,1742808550909,-559.70064779,0.00012173,2]
[356607243,1742808550929,-559.70064779,0.00012173,2]
[356607244,1742808550949,-559.70064779,0.00012173,2]
[356607245,1742808550970,-559.70064779,0.00012173,2]
[356607246,1742808550990,-559.70064779,0.00012173,2]
[356607247,1742808551011,-559.70064779,0.00012173,2]
[356607248,1742808551032,-559.70064779,0.00012173,2]
[356607249,1742808551053,-559.70064779,0.00012173,2]
[356607250,1742808551075,-559.70064779,0.00012173,2]
[356607251,1742808551096,-559.70064779,0.00012173,2]
[356607252,1742808551116,-559.70064779,0.00012173,2]
[356607253,1742808551138,-559.70064779,0.00012173,2]
[356607254,1742808551159,-559.70064779,0.00012173,2]
[356607255,1742808551181,-559.70064779,0.00012173,2]
[356607256,1742808551202,-559.70064779,0.00012173,2]
[356607257,1742808551223,-559.70064779,0.00012173,2]
[356607258,1742808551245,-559.70064779,0.00012173,2]
[356607259,1742808551267,-559.70064779,0.00012173,2]
[356607260,1742808551288,-559.70064779,0.00012173,2]
[356607261,1742808551309,-559.70064779,0.00012173,2]
[356607262,1742808551331,-559.70064779,0.00012173,2]
[356607263,1742808551354,-559.70064779,0.00012173,2]
[356607264,1742808551375,-559.70064779,0.00012173,2]
[356607265,1742808551398,-559.70064779,0.00012173,2]
[356607266,1742808551420,-559.70064779,0.00012173,2]
[356607267,1742808551443,-559.70064779,0.00012173,2]
[356607268,1742808551466,-559.70064779,0.00012173,2]
[356607269,1742808551488,-559.70064779,0.00012173,2]
[356607270,1742808551509,-559.70064779,0.00012173,2]
[356607271,1742808551530,-559.70064779,0.00012173,2]
[356607272,1742808551551,-559.70064779,0.00012173,2]
[356607273,1742808551572,-559.70064779,0.00012173,2]
[356607274,1742808551594,-559.70064779,0.00012173,2]
[356607275,1742808551616,-559.70064779,0.00012173,2]
[356607276,1742808551638,-559.70064779,0.00012173,2]
[356607277,1742808551659,-559.70064779,0.00012173,2]
[356607278,1742808551682,-559.70064779,0.00012173,2]
[356607279,1742808551704,-559.70064779,0.00012173,2]
[356607280,1742808551727,-559.70064779,0.00012173,2]
[356607281,1742808551749,-559.70064779,0.00012173,2]
[356607282,1742808551770,-559.70064779,0.00012173,2]
[356607283,1742808551791,-559.70064779,0.00012173,2]
[356607284,1742808551812,-559.70064779,0.00012173,2]
[356607285,1742808551834,-559.70064779,0.00012173,2]
[356607286,1742808551856,-559.70064779,0.00012173,2]
[356607287,1742808551879,-559.70064779,0.00012173,2]
[356607288,1742808551902,-559.70064779,0.00012173,2]
[356607289,1742808551923,-559.70064779,0.00012173,2]
[356607290,1742808551944,-559.70064779,0.00012173,2]
[356607291,1742808551966,-559.70064779,0.00012173,2]
[356607292,1742808551988,-248.75584369,0.00012173,2]
[356607293,1742808552009,-215.42746979,0.00012173,2]
[356607294,1742808552030,-218.0631136,0.00012173,2]
[356607295,1742808552051,-500.0,0.00012173,2]
[356607296,1742808552072,-469.7471825,0.00012173,2]
[356607297,1742808552093,-500.0,0.00012173,2]
[356607298,1742808552114,-500.0,0.00012173,2]
[356607299,1742808552135,-9663.39247186,0.00012174,2]
[356607300,1742808552156,-151.0,0.00012174,2]
[356607301,1742808552176,-151.0,0.00012174,2]
[356607302,1742808552197,-151.0,0.00012174,2]
[356607303,1742808552216,-151.0,0.00012174,2]
[356607304,1742808552236,-263.702188,0.00012174,2]
[356607305,1742808552257,-240.89095306,0.00012174,2]
[356607306,1742808552279,-2637.11610847,0.00012176,2]
[356607307,1742808553079,-11555.27373794,0.00012176,2]
[356607308,1742808560088,-27866.76102677,0.00012176,2]
[356607309,1742808560110,-14062.18311056,0.000123,2]
[356607310,1742808561534,495.27435224,0.0001202,2]
[356607314,1742808592033,-150.0,0.00012173,2]
[356607316,1742808599602,150.0,0.0001202,2]
[356607317,1742808609351,-239.10381584,0.00012168,2]
[356607318,1742808615887,239.10381584,0.0001202,2]
[356607319,1742808616229,-176.40567201,0.00012166,2]
[356607320,1742808624944,176.40567201,0.0001202,2]
[356607343,1742808632620,-312.27944453,0.00012166,2]
[356607358,1742808638255,-111.31488346,0.00012166,2]
[356607359,1742808638265,-28.54212767,0.00012168,2]
[356607360,1742808638274,-302.0,0.00012168,2]
[356607361,1742808638284,-1.0,0.00012173,2]
[356607362,1742808638294,-151.0,0.00012173,2]
[356607363,1742808638303,-151.0,0.00012174,2]
[356607364,1742808638313,-151.0,0.00012176,2]
[356607365,1742808638322,-114.09963567,0.00012221,2]
[356607366,1742808638338,-434.81370448,0.00012221,2]
[356607422,1742808646488,-542.93801904,0.00012221,2]
[356607423,1742808646499,-300.0,0.00012299,2]
[356607424,1742808646509,-500.0,0.00012299,2]
[356607425,1742808646519,-152.64417952,0.00012299,2]
[356607426,1742808646528,-500.0,0.00012299,2]
[356607427,1742808646537,-228.82302775,0.00012299,2]
[356607428,1742808646547,-500.0,0.00012299,2]
[356607429,1742808646556,-500.0,0.00012299,2]
[356607430,1742808646565,-500.0,0.00012299,2]
[356607431,1742808646574,-500.0,0.00012299,2]
[356607432,1742808646583,-500.0,0.00012299,2]
[356607433,1742808646593,-500.0,0.00012299,2]
[356607434,1742808646603,-320.88673704,0.00012299,2]
[356607435,1742808646612,-500.0,0.00012299,2]
[356607436,1742808646621,-500.0,0.00012299,2]
[356607437,1742808646630,-500.0,0.00012299,2]
[356607438,1742808646639,-390.59852164,0.00012299,2]
[356607439,1742808648167,150.43546325,0.0001202,2]
[356607440,1742808771506,176.664437,0.00010959,2]
[356607441,1742808797468,698.691,0.0001202,2]
[356607443,1742809091608,179.74606632,0.00011299,2]
[356607444,1742809091634,24720.25393368,0.00011299,2]
[356607445,1742809097831,179.74606632,0.0001202,2]
[356607446,1742809260884,182.824014,0.00011295,2]
[356607447,1742809261148,182.824014,0.00011446,2]
[356607448,1742809261356,182.824014,0.00011596,2]
[356607449,1742809261559,182.824014,0.00011747,2]
[356607450,1742809308672,211.51737344,0.00011999,2]
[356607451,1742809325223,226.44247807,0.00011999,2]
[356607452,1742809339029,5341.67515752,0.00011999,2]
[356607453,1742809377249,250.0,0.00011295,2]
[356607454,1742809503217,4188.05531036,0.0001202,2]
[356607455,1742809592782,-185.58708785,0.00012099,2]
[356607456,1742809596285,-13.21411669,0.00012099,2]
[356607457,1742809596307,-151.27601784,0.00012099,2]
[356607458,1742809600128,350.07722238,0.0001202,2]
[356607459,1742809609148,-48.80954563,0.00012099,2]
[356607460,1742809609170,-261.98242377,0.00012199,2]
[356607461,1742809609191,-941.94670732,0.000122,2]
[356607462,1742809609211,-800.0,0.00012289,2]
[356607463,1742809609231,-302.0,0.00012293,2]
[356607464,1742809609252,-600.0,0.00012293,2]
[356607465,1742809609272,-500.0,0.00012294,2]
[356607466,1742809609294,-500.0,0.00012294,2]
[356607467,1742809609314,-500.0,0.00012294,2]
[356607468,1742809609335,-586.96062135,0.00012294,2]
[356607469,1742809609355,-156.71569859,0.00012294,2]
[356607470,1742809609376,-500.0,0.00012294,2]
[356607471,1742809609397,-500.0,0.00012294,2]
[356607472,1742809609418,-500.0,0.00012294,2]
[356607473,1742809609439,-500.0,0.00012294,2]
[356607474,1742809609460,-500.0,0.00012294,2]
[356607475,1742809609480,-500.0,0.00012294,2]
[356607476,1742809609502,-500.0,0.00012294,2]
[356607477,1742809609523,-500.0,0.00012294,2]
[356607478,1742809609545,-500.0,0.00012294,2]
[356607479,1742809609564,-500.0,0.00012294,2]
[356607480,1742809609586,-374.57825168,0.00012294,2]
[356607481,1742809614988,-125.42174832,0.00012294,2]
[356607482,1742809615012,-63.12248728,0.00012294,2]
[356607483,1742809626105,-188.5442356,0.00012171,2]
[356607484,1742809626126,-300.0,0.00012293,2]
[356607485,1742809626148,-436.87751272,0.00012294,2]
[356607486,1742809626169,-500.0,0.00012294,2]
[356607487,1742809626191,-500.0,0.00012294,2]
[356607488,1742809626211,-500.0,0.00012294,2]
[356607489,1742809626232,-500.0,0.00012294,2]
[356607490,1742809626252,-500.0,0.00012294,2]
[356607491,1742809626273,-500.0,0.00012294,2]
[356607492,1742809626293,-500.0,0.00012294,2]
[356607493,1742809626314,-500.0,0.00012294,2]
[356607494,1742809626335,-500.0,0.00012294,2]
[356607495,1742809626355,-500.0,0.00012294,2]
[356607496,1742809626376,-500.0,0.00012294,2]
[356607497,1742809626397,-500.0,0.00012294,2]
[356607498,1742809626418,-500.0,0.00012294,2]
[356607499,1742809626439,-500.0,0.00012294,2]
[356607500,1742809626460,-500.0,0.00012294,2]
[356607501,1742809626482,-500.0,0.00012294,2]
[356607502,1742809626505,-500.0,0.00012294,2]
[356607503,1742809626526,-500.0,0.00012294,2]
[356607504,1742809626548,-500.0,0.00012294,2]
[356607505,1742809626569,-500.0,0.00012294,2]
[356607506,1742809626591,-222.77888758,0.00012294,2]
[356607507,1742809626614,-500.0,0.00012294,2]
[356607508,1742809626635,-500.0,0.00012294,2]
[356607509,1742809626657,-500.0,0.00012294,2]
[356607510,1742809626677,-2156.45243642,0.00012295,2]
[356607511,1742809633020,2054.86,0.00014,30]
[356607512,1742809633076,-10145.26672348,0.00012295,2]
[356607513,1742809683531,-291.426376,0.00012295,2]
[356607514,1742809694435,-220.30594051,0.00012172,2]
[356607518,1742809832623,-71.12043549,0.00012172,2]
[356607519,1742809832633,-862.1359851,0.00012283,2]
[356607520,1742809832642,-1000.0,0.00012293,2]
[356607521,1742809832651,-1029.4654639,0.00012293,2]
[356607522,1742809832661,-715.7658362,0.00012296,2]
[356607523,1742809832670,-783.15406598,0.00012297,2]
[356607524,1742809832679,-300.0,0.00012297,2]
[356607525,1742809832688,-220.30594051,0.00012298,2]
[356607526,1742809832697,-500.0,0.00012298,2]
[356607527,1742809832707,-172.27788875,0.00012298,2]
[356607528,1742809832716,-500.0,0.00012298,2]
[356607529,1742809832726,-500.0,0.00012298,2]
[356607530,1742809832735,-18817.72520144,0.00012299,2]
[356607531,1742809832745,-500.0,0.00012299,2]
[356607532,1742809832757,-348.44294631,0.00012299,2]
[356607533,1742809832767,-500.0,0.00012299,2]
[356607534,1742809832777,-29582.45029072,0.000123,2]
[356607535,1742809832787,-300.0,0.000123,2]
[356607536,1742809832796,-300.0,0.00012383,2]
[356607537,1742809832806,-176.438,0.00012387,2]
[356607538,1742809832815,-325.25801102,0.00012389,2]
[356607539,1742809832825,-68.18637028,0.0001239,2]
[356607543,1742809834730,-300.0,0.00012072,2]
[356607560,1742809838417,-809.84927259,0.00012072,2]
[356607562,1742809838427,-657.07164064,0.0001239,2]
[356607564,1742809838436,-1838.89355862,0.000124,2]
[356607567,1742809839372,-1644.96145248,0.000124,2]
[356607568,1742809839598,-1127.25185817,0.000124,2]
[356607569,1742809839630,-4388.89313073,0.000124,2]
[356607570,1742809839641,-157.49685,0.000124,2]
[356607571,1742809839652,-157.49685,0.000124,2]
[356607572,1742809839662,-152.0,0.00012407,2]
[356607573,1742809839674,-1180.20429657,0.000125,2]
[356607574,1742809839684,-151.0,0.000125,2]
[356607575,1742809839696,-151.0,0.00012501,2]
[356607576,1742809839707,-17461.76371927,0.00012502,2]
[356607577,1742809839717,-157.49685,0.00012502,2]
[356607578,1742809839728,-157.49685,0.00012502,2]
[356607579,1742809839738,-174.412792,0.00012502,2]
[356607580,1742809839749,-862.13598508,0.00012612,2]
[356607581,1742809839761,-1000.0,0.0001268,2]
[356607582,1742809839774,-192.0,0.00012686,2]
[356607583,1742809839785,-4638.6448122,0.000129,2]
[356607584,1742809839795,-862.13598508,0.00012941,2]
[356607585,1742809839807,-245.0,0.00012972,2]
[356607586,1742809839818,-862.13598508,0.0001327,2]
[356607587,1742809839828,-420.0,0.00013495,2]
[356607588,1742809839839,-1074.74198898,0.000135,2]
[356607589,1742809839851,-157.49685,0.00013599,2]
[356607590,1742809839862,-157.49685,0.00013599,2]
[356607591,1742809839873,-151.0,0.00013599,2]
[356607592,1742809839883,-862.13598508,0.00013599,2]
[356607593,1742809839894,-500.0,0.00013673,2]
[356607594,1742809839905,-500.0,0.00013673,2]
[356607595,1742809839916,-501.87455126,0.00013673,2]
[356607596,1742809839927,-206.50668391,0.00013673,2]
[356607597,1742809839938,-500.0,0.00013673,2]
[356607598,1742809839949,-362.96316911,0.00013673,2]
[356607605,1742809843785,-137.03683089,0.00013673,2]
[356607606,1742809843794,-500.0,0.00013673,2]
[356607607,1742809843803,-503.52736579,0.00013673,2]
[356607608,1742809843814,-34.21283091,0.00013673,2]
[356607614,1742809846550,-436.65,0.00013673,2]
[356607615,1742809846716,-29.13716909,0.00013673,2]
[356607616,1742809846727,-133.52537923,0.00013673,2]
[356607617,1742809853657,176.664437,0.00010959,2]
[356607619,1742810560650,-188.63255562,0.00012047,2]
[356607620,1742810566244,188.63255562,0.0001202,2]
[356607666,1742810800448,-186.8748709,0.00012047,2]
[356607667,1742810802938,-155.84888636,0.00012047,2]
[356607668,1742810825924,-156.01943339,0.00012046,2]
[356607669,1742810834947,156.01943339,0.0001202,2]
[356607670,1742810848448,176.664437,0.00010959,2]
[356607671,1742810867530,771.0317166,0.00011605,2]
[356607672,1742810877020,250.0,0.00011513,2]
[356607673,1742810883547,-150.0,0.00012046,2]
[356607674,1742810888098,150.0,0.0001202,2]
[356607675,1742810914420,-150.0,0.00012046,2]
[356607676,1742810914447,-2.67,0.00012046,2]
[356607677,1742810966147,-300.0,0.00012046,2]
[356607678,1742810966169,-200.94691568,0.00012046,2]
[356607679,1742810966190,-10678.59921906,0.00012047,2]
[356607749,1742811063249,-94.67702368,0.00012047,2]
[356607750,1742811063273,-65.32297632,0.00012047,2]
[356607751,1742811075283,-109.58374766,0.00012047,2]
[356607752,1742811075308,-50.41625234,0.00012175,2]
[356607753,1742811123797,-160.0,0.00012175,2]
[356607754,1742811123823,-43.3606391,0.00012175,2]
[356607755,1742811171026,24900.0,0.0001173,2]
[356607756,1742811183697,-116.6393609,0.00012175,2]
[356607757,1742811183720,-35.54222887,0.00012175,2]
[356607758,1742811192372,-152.18158977,0.00012175,2]
[356607759,1742811317680,2000.0,0.00012,2]
[356607760,1742811685054,150.0,0.00011784,2]
[356607764,1742812027133,-152.18158977,0.00012175,2]
[356607765,1742812027156,-53.15701271,0.00012175,2]
[356607766,1742812108852,278.15950536,0.0001,2]
[356607767,1742812115017,611.33332156,9e-05,2]
[356607768,1742812118664,1000.0,0.0001,2]
[356607769,1742812172127,157.4875844,0.00011575,2]
[356607770,1742812212272,-347.81841023,0.0001207,2]
[356607774,1742812222808,-183.9195386,0.0001207,2]
[356607796,1742812232045,-1946.14933367,0.0001207,2]
[356607797,1742812232055,-300.0,0.00012175,2]
[356607798,1742812232064,-500.0,0.00012175,2]
[356607799,1742812232074,-11555.27,0.00012176,2]
[356607800,1742812232084,-500.0,0.00012284,2]
[356607801,1742812232093,-500.0,0.00012284,2]
[356607802,1742812232103,-500.0,0.00012284,2]
[356607803,1742812232112,-500.0,0.00012284,2]
[356607804,1742812232123,-500.0,0.00012284,2]